bitfinex-derivatives/quotes_ETHF0:USTF0_20250404
["timestamp","ask_amount","ask_price","bid_price","bid_amount"]
[1743752425582,3.31829,1815.8,1815.7,1.81031]
[1743752426584,1.84673,1815.9,1815.8,1.10175]
[1743752426881,1.84673,1815.9,1815.8,3.20245]
[1743752428185,3.27383,1815.9,1815.8,3.20245]
[1743752428987,1.10175,1815.8,1815.7,4.77178]
[1743752429187,2.52885,1815.8,1815.7,1.10178]
[1743752429485,1.10181,1815.7,1815.6,2.49452]
[1743752429681,2.60251,1815.7,1815.6,2.49452]
[1743752430582,1.5007,1815.7,1815.6,2.49452]
[1743752430886,1.10177,1815.9,1815.8,1.10173]
[1743752431081,1.10181,1815.8,1815.7,1.10176]
[1743752431475,1.10181,1815.7,1815.6,4.30962]
[1743752431879,1.10179,1815.8,1815.7,1.10177]
[1743752432388,1.10179,1815.8,1815.7,2.56807]
[1743752432883,2.63249,1815.8,1815.7,2.56807]
[1743752433086,2.63249,1815.8,1815.7,2.56811]
[1743752433583,2.63249,1815.8,1815.7,1.4663]
[1743752433789,1.10181,1815.7,1815.6,4.30961]
[1743752433985,2.63251,1815.7,1815.6,1.10181]
[1743752434188,2.63251,1815.7,1815.6,2.59731]
[1743752435789,2.63251,1815.7,1815.6,1.4955]
[1743752435986,2.63251,1815.7,1815.6,2.59737]
[1743752436187,1.10181,1815.8,1815.7,1.10176]
[1743752436390,1.10181,1815.8,1815.7,2.55926]
[1743752437092,1.10181,1815.8,1815.7,1.4575]
[1743752437390,1.10181,1815.8,1815.7,2.55931]
[1743752437591,2.49021,1815.8,1815.7,2.55931]
[1743752438391,2.49021,1815.8,1815.7,1.4575]
[1743752438885,1.10181,1815.7,1815.6,4.30963]
[1743752439091,2.55841,1815.7,1815.6,5.83393]
[1743752439591,1.10181,1815.7,1815.6,5.83393]
[1743752440891,1.10163,1816.0,1815.9,1.10169]
[1743752441484,1.10163,1816.0,1815.9,2.2381]
[1743752441685,3.28523,1816.0,1815.9,2.2381]
[1743752442389,3.28523,1816.0,1815.9,1.5243]
[1743752442790,1.10169,1815.9,1815.8,5.01229]
[1743752442992,3.28799,1815.9,1815.8,3.2078]
[1743752443293,3.28799,1815.9,1815.7,2.58386]
[1743752443294,1.10181,1815.7,1815.6,1.80462]
[1743752443589,1.10181,1815.7,1815.6,0.7028]
[1743752443789,1.10187,1815.6,1815.5,5.79178]
[1743752443986,1.83877,1815.6,1815.5,4.30968]
[1743752444384,1.10199,1815.4,1815.3,5.8001765]
[1743752444985,2.61849,1815.4,1815.3,5.8001765]
[1743752447188,0.762,1815.5,1815.4,1.10199]
[1743752447395,1.86398,1815.5,1815.4,1.5315]
[1743752447887,3.33478,1815.5,1815.4,1.5315]
[1743752448591,3.33478,1815.5,1815.3,4.3180865]
[1743752448592,1.10199,1815.4,1815.3,0.0082665]
[1743752448893,1.10223,1815.0,1814.9,3.2078]
[1743752449084,1.10241,1814.7,1814.6,4.6589]
[1743752449286,1.10254,1814.6,1814.5,1.10253]
[1743752449485,2.57334,1814.6,1814.5,1.10253]
[1743752449993,2.57334,1814.6,1814.5,1.402]
[1743752450395,2.57334,1814.6,1814.5,2.50454]
[1743752453697,2.57334,1814.6,1814.5,1.402]
[1743752453898,2.57334,1814.6,1814.5,2.50454]
[1743752455695,0.0082665,1814.7,1814.6,1.10247]
[1743752455894,1.1106765,1814.7,1814.6,3.21707]
[1743752456594,0.0082665,1814.7,1814.6,3.21707]
[1743752456791,1.1106765,1814.7,1814.6,3.21707]
[1743752456999,0.0082665,1814.7,1814.6,3.21707]
[1743752457597,0.0082665,1814.7,1814.6,8.92487]
[1743752458200,0.31350248,1814.7,1814.6,8.92487]
[1743752458900,1.41591248,1814.7,1814.6,6.42487]
[1743752459202,1.41591248,1814.7,1814.6,3.21707]
[1743752460604,0.31350248,1814.7,1814.6,3.21707]
[1743752461809,1.41591248,1814.7,1814.6,3.21707]
[1743752462099,0.31350248,1814.7,1814.6,3.21707]
[1743752462890,0.31350248,1814.7,1814.6,6.42487]
[1743752464606,1.41591248,1814.7,1814.6,6.42487]
[1743752465098,0.31350248,1814.7,1814.6,6.42487]
[1743752465604,0.31350248,1814.7,1814.6,10.09487]
[1743752466701,1.41591248,1814.7,1814.6,10.09487]
[1743752466903,0.31350248,1814.7,1814.6,10.09487]
[1743752467105,1.41591248,1814.7,1814.6,10.09487]
[1743752467402,1.41591248,1814.7,1814.6,4.31027]
[1743752467998,2.81471248,1814.7,1814.6,4.31027]
[1743752468901,3.51071248,1814.7,1814.6,4.31027]
[1743752469806,3.51071248,1814.7,1814.6,1.10247]
[1743752470409,1.10247,1814.6,1814.5,2.55679]
[1743752470609,2.59057,1814.6,1814.5,2.55679]
[1743752471108,2.89580598,1814.6,1814.5,2.55679]
[1743752471305,2.89580598,1814.6,1814.5,1.4543]
[1743752471507,1.10254,1814.5,1814.4,4.3186265]
[1743752471807,2.59064,1814.5,1814.4,5.8299265]
[1743752472204,2.89587598,1814.5,1814.4,5.8299265]
[1743752473204,1.79333598,1814.5,1814.4,5.8299265]
[1743752473502,0.30523598,1814.5,1814.4,5.8299265]
[1743752474110,1.40777598,1814.5,1814.4,5.8299265]
[1743752474407,0.30523598,1814.5,1814.4,5.8299265]
[1743752474809,1.40777598,1814.5,1814.4,5.8299265]
[1743752475809,0.30523598,1814.5,1814.4,5.8299265]
[1743752476398,1.40777598,1814.5,1814.4,5.8299265]
[1743752476608,0.30523598,1814.5,1814.4,5.8299265]
[1743752477614,0.0082665,1814.7,1814.6,1.10247]
[1743752477803,0.0082665,1814.7,1814.6,7.98027]
[1743752478202,0.0082665,1814.7,1814.6,8.70577]
[1743752478604,0.0082665,1814.7,1814.6,11.20577]
[1743752478605,1e-08,1814.7,1814.6,11.20577]
[1743752481511,1e-08,1814.7,1814.6,8.70577]
[1743752481710,1e-08,1814.7,1814.6,8.70477]
[1743752486018,1.52010001,1814.7,1814.6,8.70477]
[1743752487117,1e-08,1814.7,1814.6,8.70477]
[1743752488120,1.42120001,1814.7,1814.6,8.70477]
[1743752488510,1e-08,1814.7,1814.6,8.70477]
[1743752492919,1e-08,1814.7,1814.6,11.20477]
[1743752495029,1e-08,1814.7,1814.6,8.70477]
[1743752495619,1e-08,1814.7,1814.6,11.20477]
[1743752497329,1e-08,1814.7,1814.6,12.61117]
[1743752497827,1e-08,1814.7,1814.6,10.11117]
[1743752498026,2.95720001,1814.7,1814.6,10.11117]
[1743752498229,2.95720001,1814.7,1814.6,9.38567]
[1743752499924,1e-08,1814.7,1814.6,9.38567]
[1743752503631,1.49400001,1814.7,1814.6,9.38567]
[1743752504133,1.49400001,1814.7,1814.6,5.71667]
[1743752504333,1.49400001,1814.7,1814.6,9.38467]
[1743752504832,1.49400001,1814.7,1814.6,7.97827]
[1743752505725,2.59641001,1814.7,1814.6,7.97827]
[1743752506034,1.49400001,1814.7,1814.6,7.97827]
[1743752506234,2.59641001,1814.7,1814.6,7.97827]
[1743752506534,1.49400001,1814.7,1814.6,7.97827]
[1743752506833,2.59641001,1814.7,1814.6,7.97827]
[1743752507134,2.59641001,1814.7,1814.6,3.2078]
[1743752507328,1.10254,1814.5,1814.4,4.3186165]
[1743752507936,3.23954,1814.5,1814.4,4.3186165]
[1743752508641,2.137,1814.5,1814.4,4.3186165]
[1743752509530,2.137,1814.5,1814.4,6.4906165]
[1743752509733,0.7097,1814.6,1814.5,1.10254]
[1743752509937,2.8892,1814.6,1814.5,1.10254]
[1743752510537,3.99167,1814.6,1814.5,1.10254]
[1743752511037,2.8892,1814.6,1814.5,1.10254]
[1743752512044,2.8892,1814.6,1814.5,2.53354]
[1743752513841,2.8892,1814.6,1814.5,3.28334]
[1743752515838,1e-08,1814.7,1814.6,1.10247]
[1743752516040,1e-08,1814.7,1814.6,9.44967]
[1743752517554,21.56814583,1815.2,1815.1,1.10217]
[1743752517847,23.01864583,1815.2,1815.1,1.10217]
[1743752518350,23.01864583,1815.2,1815.1,2.49287]
[1743752519147,24.12075583,1815.2,1815.1,1.3907]
[1743752519451,24.12075583,1815.2,1815.1,1.10217]
[1743752519650,23.01864583,1815.2,1815.1,1.10217]
[1743752520146,1.4505,1815.2,1815.1,1.10217]
[1743752521358,1.4505,1815.2,1815.1,2.60767]
[1743752523352,2.55261,1815.2,1815.1,2.60767]
[1743752523654,1.4505,1815.2,1815.1,1.10217]
[1743752524843,1.4505,1815.2,1815.1,2.63037]
[1743752525762,0.7123665,1815.3,1815.2,1.10211]
[1743752525951,2.2218665,1815.3,1815.2,5.83811]
[1743752527552,3.3239165,1815.3,1815.2,3.2078]
[1743752527753,3.3239165,1815.3,1815.2,4.30991]
[1743752528860,0.0082665,1815.3,1815.2,4.30991]
[1743752529563,0.7408,1815.6,1815.5,1.10193]
[1743752529860,0.7408,1815.6,1815.5,4.30973]
[1743752530057,22.29214583,1815.7,1815.6,1.10187]
[1743752530360,22.29214583,1815.7,1815.6,2.48567]
[1743752531354,21.56814583,1815.7,1815.6,2.48567]
[1743752531655,21.56814583,1815.7,1815.6,3.18357]
[1743752532063,21.56814583,1815.7,1815.6,2.48567]
[1743752532262,22.66995583,1815.7,1815.6,2.91690221]
[1743752532562,21.56814583,1815.7,1815.6,2.48567]
[1743752532758,1.5175,1815.7,1815.6,2.48567]
[1743752533962,1.5175,1815.7,1815.6,2.93197191]
[1743752534159,1.5175,1815.7,1815.6,2.48567]
[1743752534553,0.0082665,1815.8,1815.7,1.10181]
[1743752534864,0.0082665,1815.8,1815.7,6.50951]
[1743752535060,0.0082665,1815.8,1815.7,10.17551]
[1743752542961,1.3976,1816.1,1816.0,1.10162]
[1743752543256,1.4458,1816.3,1816.2,1.1015]
[1743752543460,1.4458,1816.3,1816.2,4.3093]
[1743752543662,2.8923,1816.3,1816.2,4.3093]
[1743752543865,2.8923,1816.3,1816.2,5.7716]
[1743752544465,0.00551105,1816.4,1816.3,1.10144]
[1743752544767,0.00551105,1816.4,1816.3,2.56374]
[1743752544965,0.00551105,1816.4,1816.3,6.22774]
[1743752545468,1.10689105,1816.4,1816.3,6.22774]
[1743752545667,1.10144,1816.3,1816.2,3.2078]
[1743752545863,1.10155,1816.2,1815.9,3.2078]
[1743752546067,0.7091,1816.2,1816.0,1.10157]
[1743752546368,1.10158,1816.1,1816.0,1.1016]
[1743752546563,0.7091,1816.2,1816.1,1.10156]
[1743752546764,0.7091,1816.2,1816.1,4.30936]
[1743752547268,1.8106,1816.2,1816.1,4.30936]
[1743752547971,0.7091,1816.2,1816.1,4.30936]
[1743752548167,1.8106,1816.2,1816.1,4.30936]
[1743752548470,1.81064,1816.2,1816.1,1.10156]
[1743752548670,0.7091,1816.2,1816.1,1.10156]
[1743752549572,1.8106,1816.2,1816.1,1.10156]
[1743752550567,1.10156,1816.1,1816.0,2.57397]
[1743752551066,1.81065,1816.2,1816.1,1.10156]
[1743752551366,1.10689105,1816.4,1816.3,1.10144]
[1743752551568,0.75761105,1816.4,1816.3,1.10144]
[1743752551971,0.75761105,1816.4,1816.3,2.58734]
[1743752552272,0.75761105,1816.4,1816.3,5.79514]
[1743752553859,1.85899105,1816.4,1816.3,2.58734]
[1743752554263,0.75761105,1816.4,1816.3,2.58734]
[1743752554675,0.75761105,1816.4,1816.3,1.10144]
[1743752554876,1.1015,1816.2,1816.1,7.97231]
[1743752555272,1.84797,1816.3,1816.2,1.1015]
[1743752555476,1.1015,1816.2,1816.1,7.97233]
[1743752555976,1.1015,1816.2,1816.1,3.2078]
[1743752556167,1.1015,1816.2,1816.1,1.10156]
[1743752557173,1.1015,1816.2,1816.1,4.30936]
[1743752557770,1.1015,1816.2,1816.1,3.2078]
[1743752558073,1.10156,1816.1,1816.0,4.76459]
[1743752558571,1.10156,1816.1,1816.0,1.10159]
[1743752559375,1.10175,1815.9,1815.8,1.10174]
[1743752561377,1.454,1816.0,1815.7,9.1431]
[1743752561581,2.55568,1816.0,1815.9,1.10169]
[1743752561774,2.55568,1816.0,1815.9,4.30949]
[1743752562578,1.454,1816.0,1815.9,4.30949]
[1743752562779,1.10162,1816.0,1815.9,4.30949]
[1743752562973,1.10162,1816.0,1815.9,5.01513]
[1743752563174,1.10162,1816.0,1815.9,1.10163]
[1743752563373,1.10162,1816.0,1815.9,2.49793]
[1743752563783,1.10162,1816.0,1815.9,5.70573]
[1743752563981,7.4011,1816.3,1815.9,7.35832]
[1743752564184,1.10154,1816.2,1816.1,1.10153]
[1743752564381,1.10154,1816.2,1816.1,2.49783]
[1743752564878,1.10154,1816.2,1816.1,1.3963]
[1743752565383,1.10154,1816.2,1816.1,2.49786]
[1743752566180,2.55104,1816.2,1816.1,2.49786]
[1743752567182,2.55104,1816.2,1816.1,1.3963]
[1743752567483,2.55104,1816.2,1815.9,1.10167]
[1743752567484,1.10162,1816.0,1815.9,1.10167]
[1743752568183,1.83732,1816.0,1815.9,1.10167]
[1743752569081,1.10169,1815.9,1815.8,1.4684]
[1743752569278,1.10181,1815.7,1815.6,2.57022]
[1743752569582,1.10181,1815.7,1815.6,2.57027]
[1743752569972,0.7287,1815.9,1815.7,1.10181]
[1743752570178,1.83039,1815.9,1815.8,2.51855]
[1743752570373,1.83039,1815.9,1815.8,3.27395]
[1743752571783,2.75393,1816.1,1815.8,3.27395]
[1743752571784,7.97235,1816.2,1815.9,1.10169]
[1743752571985,1.10162,1816.1,1816.0,1.1016]
[1743752573591,1.10162,1816.1,1816.0,2.6308]
[1743752577683,3.28343,1816.2,1816.1,1.10156]
[1743752577986,3.28343,1816.2,1816.1,2.59526]
[1743752578288,1.81533,1816.2,1816.1,2.59526]
[1743752579189,1.81533,1816.2,1816.1,1.4937]
[1743752579486,3.31233,1816.2,1816.1,1.4937]
[1743752580477,1.10162,1816.1,1815.9,3.2078]
[1743752580790,1.10162,1816.1,1816.0,2.59038]
[1743752580992,3.31234,1816.2,1816.1,1.10156]
[1743752581285,3.31234,1816.2,1816.1,2.59036]
[1743752582086,1.81534,1816.2,1816.1,2.59036]
[1743752584498,3.2079,1816.3,1816.2,1.1015]
[1743752584695,1.8227,1816.3,1816.2,3.2949]
[1743752586096,0.70131105,1816.4,1816.3,1.10144]
[1743752586398,1.10689105,1816.4,1816.3,2.58584]
[1743752587295,0.00551105,1816.4,1816.3,5.79364]
[1743752590910,7.0692,1816.7,1816.6,1.10126]
[1743752591110,5.968,1816.7,1816.4,8.61863]
[1743752591305,7.06923,1816.7,1816.6,1.10126]
[1743752591709,5.968,1816.7,1816.6,1.10126]
[1743752591909,4.04497,1816.8,1816.7,1.1012]
[1743752592110,1.1012,1816.7,1816.6,3.28704]
[1743752592313,4.04499,1816.8,1816.7,1.1012]
[1743752592612,2.62509,1816.8,1816.7,3.3045]
[1743752594505,4.09989,1816.8,1816.7,3.3045]
[1743752596120,1.10126,1816.6,1816.5,4.3173365]
[1743752596420,1.10126,1816.6,1816.5,0.0082665]
[1743752596614,1.10126,1816.6,1816.5,1.1095865]
[1743752596813,2.56126,1816.6,1816.5,1.1095865]
[1743752597120,2.56126,1816.6,1816.5,0.0082665]
[1743752597817,2.56126,1816.6,1816.5,1.1095865]
[1743752598823,2.56126,1816.6,1816.5,0.0082665]
[1743752599015,2.56126,1816.6,1816.5,1.1095865]
[1743752599217,2.56126,1816.6,1816.5,0.0082665]
[1743752599422,3.96,1816.6,1816.2,2.55149]
[1743752599620,1.10144,1816.3,1816.2,2.55149]
[1743752599815,1.10144,1816.3,1816.2,1.45]
[1743752600017,1.10144,1816.3,1816.2,2.5515]
[1743752600214,1.10144,1816.3,1816.2,1.45]
[1743752600414,2.60894,1816.3,1816.2,2.5515]
[1743752600615,2.60894,1816.3,1816.2,1.45]
[1743752601218,2.60894,1816.3,1816.2,2.5515]
[1743752601522,2.60894,1816.3,1816.2,1.45]
[1743752602220,1.1015,1816.2,1816.1,4.3176265]
[1743752602422,3.3486,1816.2,1816.1,4.3176265]
[1743752602918,10.70871,1816.2,1815.7,2.75452]
[1743752603124,1.10175,1815.9,1815.8,1.1017]
[1743752603315,1.10175,1815.9,1815.8,2.6171]
[1743752604017,1.10175,1815.9,1815.8,5.8249]
[1743752604221,1.10175,1815.8,1815.7,0.0082665]
[1743752604418,2.56695,1815.8,1815.7,0.0082665]
[1743752604619,5.968,1815.9,1815.8,1.10175]
[1743752604920,1.10175,1815.8,1815.7,0.0082665]
[1743752605123,1.10175,1815.8,1815.7,1.5236665]
[1743752606726,2.49035,1815.8,1815.7,1.5236665]
[1743752607522,1.10199,1815.4,1815.3,7.97082]
[1743752607724,1.10199,1815.4,1815.3,4.76302]
[1743752608218,1.10199,1815.4,1815.3,6.20812]
[1743752608720,1.10199,1815.4,1815.3,6.20815]
[1743752609720,1.10199,1815.4,1815.3,1.4451]
[1743752610021,1.10205,1815.3,1815.2,0.0082665]
[1743752610426,5.06005,1815.3,1815.2,0.0082665]
[1743752613029,5.06005,1815.3,1815.2,1e-08]
[1743752614021,11.02805,1815.3,1815.2,1e-08]
[1743752617832,14.69005,1815.3,1815.2,1e-08]
[1743752618835,7.07005,1815.3,1815.2,1e-08]
[1743752620333,8.45915,1815.3,1815.2,1e-08]
[1743752621529,7.07005,1815.3,1815.2,1e-08]
[1743752621927,7.07005,1815.3,1815.2,1.44520001]
[1743752623338,8.55465,1815.3,1815.2,1.44520001]
[1743752623939,8.55465,1815.3,1815.2,1e-08]
[1743752627644,11.05465,1815.3,1815.2,1e-08]
[1743752631349,11.05465,1815.3,1814.5,4.31029]
[1743752631350,1.1027,1814.3,1814.2,1.10266]
[1743752631650,1.1027,1814.3,1814.2,1.80216]
[1743752632343,1.1027,1814.3,1814.2,1.80222]
[1743752632849,1.1027,1814.3,1814.2,3.92262]
[1743752634446,4.3105,1814.3,1814.2,2.8199]
[1743752634652,4.3105,1814.3,1814.2,1.4249]
[1743752634847,5.0767,1814.3,1814.2,1.4249]
[1743752635447,5.0767,1814.3,1814.2,0.64181897]
[1743752635653,1.10272,1814.2,1814.1,0.0082665]
[1743752635952,6.15232,1814.2,1814.1,0.0082665]
[1743752640251,1.10272,1814.2,1814.1,1.1110465]
[1743752640658,1.10269,1814.3,1814.2,1.10266]
[1743752640851,1.10269,1814.3,1814.2,3.24786]
[1743752641246,0.0082665,1814.4,1814.3,1.10266]
[1743752641453,0.0082665,1814.4,1814.3,5.74636]
[1743752641648,0.0082665,1814.4,1814.3,8.24636]
[1743752642754,0.0082665,1814.4,1814.3,5.74636]
[1743752643060,0.0082665,1814.4,1814.3,1.4359]
[1743752643360,0.0082665,1814.4,1814.3,2.53856]
[1743752644158,0.0082665,1814.4,1814.3,5.74636]
[1743752644561,1.1108665,1814.4,1814.3,5.74636]
[1743752644761,0.0082665,1814.4,1814.3,5.74636]
[1743752646559,0.0082665,1814.4,1814.3,8.24636]
[1743752646960,1e-08,1814.4,1814.3,8.24636]
[1743752651261,1e-08,1814.4,1814.3,11.90936]
[1743752654074,1e-08,1814.4,1814.3,12.67576]
[1743752655376,1e-08,1814.4,1814.3,6.51276]
[1743752655679,1e-08,1814.4,1814.3,10.17476]
[1743752659078,1e-08,1814.4,1814.3,12.67476]
[1743752660878,1e-08,1814.4,1814.3,10.17476]
[1743752666280,1e-08,1814.4,1814.3,12.67476]
[1743752671184,2.21030001,1814.7,1814.6,1.10247]
[1743752671387,2.21030001,1814.7,1814.6,7.97227]
[1743752672094,2.21030001,1814.7,1814.6,9.48047]
[1743752672292,0.6917,1814.8,1814.7,1.10241]
[1743752672497,0.0082665,1814.8,1814.7,3.35041]
[1743752675794,0.0082665,1814.8,1814.7,5.85041]
[1743752676383,0.0082665,1814.8,1814.7,1.10241]
[1743752676592,2.5069165,1814.8,1814.7,1.10241]
[1743752676786,2.5069165,1814.8,1814.7,4.76341]
[1743752676989,1.4045665,1814.8,1814.7,4.76341]
[1743752678901,1.4045665,1814.8,1814.7,6.24331]
[1743752680295,1.4045665,1814.8,1814.7,4.76341]
[1743752680495,2.5069165,1814.8,1814.7,4.76341]
[1743752680790,1.4045665,1814.8,1814.7,4.76341]
[1743752684396,2.5069165,1814.8,1814.7,4.76341]
[1743752684894,1.4045665,1814.8,1814.7,4.76341]
[1743752685090,2.5069165,1814.8,1814.7,4.76341]
[1743752685292,1.4045665,1814.8,1814.7,4.76341]
[1743752685686,2.5069165,1814.8,1814.7,4.76341]
[1743752685898,1.4045665,1814.8,1814.7,4.76341]
[1743752688502,2.5069165,1814.8,1814.7,4.76341]
[1743752688698,1.4045665,1814.8,1814.7,4.76341]
[1743752690002,1.4045665,1814.8,1814.7,6.21661]
[1743752690901,0.0082665,1814.8,1814.7,6.21661]
[1743752691199,0.0082665,1814.8,1814.7,6.95471]
[1743752691606,1e-08,1814.8,1814.7,9.45471]
[1743752693003,1e-08,1814.8,1814.7,3.29371]
[1743752693205,1e-08,1814.8,1814.7,6.95371]
[1743752695610,1e-08,1814.8,1814.7,9.45371]
[1743752700409,21.56814583,1815.6,1815.5,1.10193]
[1743752700608,23.73714583,1815.6,1815.5,1.10193]
[1743752700805,21.56814583,1815.6,1815.5,1.10193]
[1743752701009,21.56814583,1815.6,1815.5,5.09393]
[1743752701209,21.56814583,1815.6,1815.5,2.59393]
[1743752701519,21.56814583,1815.6,1815.5,5.09393]
[1743752701812,18.81256579,1815.6,1815.5,5.09393]
[1743752702715,0.0082665,1815.7,1815.6,1.10187]
[1743752703014,0.0082665,1815.7,1815.6,5.80167]
[1743752705114,0.0082665,1815.7,1815.6,6.24421125]
[1743752707513,1e-08,1815.7,1815.6,6.24421125]
[1743752708017,2.904,1816.1,1816.0,1.10162]
[1743752708320,2.904,1816.1,1816.0,4.30942]
[1743752708817,2.904,1816.1,1816.0,6.45852]
[1743752709407,0.7616,1816.1,1816.0,6.45852]
[1743752709613,0.7616,1816.1,1816.0,5.75352]
[1743752709916,3.0352,1816.1,1816.0,5.75352]
[1743752711922,0.00826649,1816.2,1816.1,1.10156]
[1743752712221,0.00826649,1816.2,1816.1,2.51126]
[1743752712423,1.45326649,1816.2,1816.1,2.51126]
[1743752715727,1.45326649,1816.2,1816.1,3.23996]
[1743752716226,0.7065,1816.3,1816.2,1.1015]
[1743752716431,2.7941,1816.5,1816.4,1.10138]
[1743752716621,2.7941,1816.5,1816.4,4.30918]
[1743752717923,3.89542,1816.5,1816.4,4.30918]
[1743752718428,2.7941,1816.5,1816.4,4.30918]
[1743752718728,3.89542,1816.5,1816.4,4.30918]
[1743752719533,1.10138,1816.4,1816.3,1.1096765]
[1743752719829,2.62318,1816.4,1816.3,1.1096765]
[1743752720030,2.62318,1816.4,1816.3,0.0082665]
[1743752720529,5.12318,1816.4,1816.3,0.0082665]
[1743752721125,8.33098,1816.4,1816.3,1e-08]
[1743752734741,5.12318,1816.4,1816.3,1e-08]
[1743752735243,2.62318,1816.4,1816.3,1e-08]
[1743752735440,5.12318,1816.4,1816.3,1e-08]
[1743752736137,2.62318,1816.4,1816.3,1e-08]
[1743752736535,1.80153649,1816.5,1816.4,1.10138]
[1743752737343,1.80153649,1816.5,1816.4,2.60488]
[1743752738142,1.10963649,1816.5,1816.4,2.60488]
[1743752738348,1.10138,1816.4,1816.3,1e-08]
[1743752738548,2.62338,1816.4,1816.3,1e-08]
[1743752740455,2.62338,1816.4,1816.3,1.10144001]
[1743752740646,2.62338,1816.4,1816.3,2.52584001]
[1743752740847,2.62338,1816.4,1816.3,1.42440001]
[1743752741043,2.62338,1816.4,1816.3,2.52584001]
[1743752741247,1.10138,1816.4,1816.3,2.52584001]
[1743752741757,1.10958649,1816.5,1816.4,1.10138]
[1743752741955,1.10958649,1816.5,1816.4,3.28858]
[1743752744551,0.00826649,1816.5,1816.4,3.28858]
[1743752744745,1.10958649,1816.5,1816.4,3.28858]
[1743752751059,5.81668649,1816.5,1816.4,1.4244]
[1743752751262,6.58158649,1816.5,1816.4,1.4244]
[1743752752761,3.37378649,1816.5,1816.4,1.4244]
[1743752753357,1.10138,1816.4,1816.3,1.10144001]
[1743752753559,3.28238,1816.4,1816.3,1.10144001]
[1743752754155,3.28238,1816.4,1816.3,2.48934001]
[1743752755660,3.28238,1816.4,1816.3,1e-08]
[1743752755661,12.64418,1816.4,1816.3,1e-08]
[1743752760068,9.43638,1816.4,1816.3,1e-08]
[1743752760367,12.64418,1816.4,1816.3,1e-08]
[1743752761260,1.10138,1816.4,1816.3,1e-08]
[1743752761465,1.10138,1816.4,1816.3,1.10144001]
[1743752761772,27.48314783,1816.8,1816.4,1.10138]
[1743752761962,1.10124,1816.7,1816.6,1.10123]
[1743752762162,1.10124,1816.7,1816.6,42.65903]
[1743752762673,21.51514783,1816.8,1816.6,0.7578]
[1743752762857,21.51514783,1816.8,1816.7,1.1012]
[1743752763062,21.51514783,1816.8,1816.7,4.309]
[1743752763263,21.51514783,1816.8,1816.7,45.109]
[1743752764968,5.968,1817.1,1816.7,46.5078]
[1743752765276,1.10102,1817.0,1816.9,4.30888]
[1743752765469,1.10102,1817.0,1816.9,7.96288]
[1743752765872,7.45061,1817.3,1816.9,7.96288]
[1743752766069,1.10101,1817.1,1817.0,0.7507]
[1743752766280,1.10101,1817.1,1817.0,1.85172]
[1743752766668,1.10095,1817.2,1817.0,1.85172]
[1743752766869,29.97266783,1817.4,1817.2,1.10085]
[1743752767070,1.10084,1817.3,1817.1,4.30871]
[1743752767377,22.61594783,1817.4,1817.3,1.10084]
[1743752767570,21.51514783,1817.4,1817.3,4.30864]
[1743752769277,1.10067,1817.6,1817.5,1.10072]
[1743752769971,0.16860797,1817.8,1817.4,3.4939065]
[1743752770171,0.16860797,1817.8,1817.7,1.10059]
[1743752770572,0.16860797,1817.8,1817.7,41.90059]
[1743752771770,0.16860797,1817.8,1817.7,45.10839]
[1743752772975,0.16860797,1817.8,1817.7,4.30839]
[1743752773576,1.26913797,1817.8,1817.7,4.30839]
[1743752773876,0.16860797,1817.8,1817.7,4.30839]
[1743752775973,0.16860797,1817.8,1817.7,5.82419]
[1743752776165,0.16860797,1817.8,1817.4,3.9497665]
[1743752776369,0.16860797,1817.8,1817.6,1.10066]
[1743752776370,2.60261,1817.7,1817.6,1.10066]
[1743752777283,1.26918797,1817.8,1817.7,1.10059]
[1743752777878,1.26913797,1817.8,1817.7,1.10059]
[1743752778083,1.26913797,1817.8,1817.7,1.4045]
[1743752778271,1.10066,1817.6,1817.5,1.10068]
[1743752778579,1.10064,1817.7,1817.6,1.10063]
[1743752778779,1.26919797,1817.8,1817.7,1.10059]
[1743752779080,5.0,1818.0,1817.9,1.10047]
[1743752779281,5.0,1818.0,1817.9,4.30827]
[1743752779481,6.10041,1818.0,1817.9,4.30827]
[1743752779682,6.10041,1818.0,1817.9,1.4946]
[1743752779982,6.10041,1818.0,1817.9,2.59507]
[1743752780576,21.51514783,1818.6,1817.9,7.2024]
[1743752780783,21.51514783,1818.6,1818.5,1.10011]
[1743752781083,21.51514783,1818.6,1818.5,41.90011]
[1743752781475,21.51514783,1818.6,1818.5,2.59471]
[1743752781676,21.51514783,1818.6,1818.5,5.09471]
[1743752781976,29.75620253,1819.2,1818.8,2.74969]
[1743752782177,23.78820253,1819.2,1819.1,1.09975]
[1743752782376,23.78820253,1819.2,1819.1,4.30755]
[1743752782577,1.09979,1819.1,1818.9,5.4108]
[1743752782776,1.09979,1819.1,1818.9,3.30285]
[1743752783080,1.09979,1819.1,1818.9,3.30282]
[1743752783276,23.78820253,1819.2,1819.1,1.09975]
[1743752783477,1.09966,1819.3,1819.1,1.09975]
[1743752783783,1.0996,1819.4,1819.2,1.09968]
[1743752783979,1.0996,1819.4,1819.3,1.442]
[1743752783980,4.3074,1819.4,1819.3,1.442]
[1743752784188,3.2078,1819.4,1819.1,1.09974]
[1743752784379,1.09969,1819.2,1819.0,6.20678]
[1743752784579,1.09965,1819.3,1819.1,1.09974]
[1743752784876,3.2078,1819.4,1818.9,3.9688]
[1743752785082,3.667,1819.6,1818.8,3.67]
[1743752785083,1.09987,1818.9,1818.8,3.67]
[1743752785374,1.09993,1818.8,1818.7,1.4338]
[1743752785579,4.30773,1818.8,1818.7,1.4338]
[1743752786180,1.09993,1818.8,1818.7,2.53379]
[1743752786377,1.09989,1818.9,1818.8,1.09991]
[1743752786578,1.09989,1818.9,1818.8,2.53371]
[1743752786987,1.09985,1819.0,1818.9,1.09987]
[1743752787179,1.09985,1819.0,1818.9,1.4338]